Cogmind - Beta 9.2 *** ADVENTURER MODE // 2019.11.27 @ 14:21:09 Player: mu Result: Destroyed by S-10 Pest with Light Assault Rifle Performance ------------- Evolutions (0) 0 Regions Visited (2) 400 Robots Destroyed (8) 40 Value Destroyed (179) 179 Prototype IDs (0) 0 Alien Tech Used (0) 0 Bonus (0) 0 TOTAL SCORE: 619 Bonus ------- None Cogmind --------- Core Integrity 0/250 Matter 300/300 Energy 99/100 System Corruption 0% Temperature Cool (0) Movement Core (50) Location -10/Mines Parts ------- > --- POWER (1) -------- (None) > --- PROPULSION (2) --- (None) > --- UTILITY (2) ------ Heat Sink > --- WEAPON (2) ------- (None) > --- INVENTORY (4) ---- Aluminum Leg Small Storage Unit Improved Signal Interpreter Peak State ------------ > --- POWER ------------ Light Nuclear Core > --- PROPULSION ------- Aluminum Leg Aluminum Leg > --- UTILITY ---------- Heat Sink Small Storage Unit > --- WEAPON ----------- Particle Gun Light Assault Rifle > --- INVENTORY -------- Aluminum Leg Improved Signal Interpreter Medium Laser Mining Laser [Rating: 10] Favorites ----------- Power Ion Engine Engine Ion Engine Power Core Light Nuclear Core Propulsion Aluminum Leg Leg Aluminum Leg Wheel Wheel Utility Small Storage Unit Device Heat Sink Storage Small Storage Unit Protection Hardened Light Armor Plating Weapon Light Assault Rifle Energy Gun Medium Laser Ballistic Gun Light Assault Rifle Special Weapon Mining Laser Build | -11 -10 -10 ------- Run | Scr Mat Min Slots Evolved . | . . . Power . | . . . Propulsion . | . . . Utility . | . . . Weapon . | . . . Parts Attached 22 | 6 10 6 Power 4 | 1 2 1 Engine 3 | 1 2 . Core 1 | . . 1 Reactor . | . . . Propulsion 5 | 2 3 . Treads . | . . . Leg 3 | . 3 . Wheel 2 | 2 . . Hover . | . . . Flight . | . . . Utility 5 | 1 3 1 Device 1 | . . 1 Storage 1 | 1 . . Processor . | . . . Hackware . | . . . Protection 3 | . 3 . Artifact . | . . . Weapon 8 | 2 2 4 Energy Gun 4 | 1 2 1 Energy Cannon . | . . . Ballistic Gun 2 | 1 . 1 Ballistic Cannon . | . . . Launcher . | . . . Special Weapon 2 | . . 2 Impact Weapon . | . . . Slashing Weapon . | . . . Piercing Weapon . | . . . Special Melee Weapon . | . . . Unidentified Prototypes . | . . . Parts Lost 10 | . 1 9 Power 2 | . . 2 Propulsion 3 | . 1 2 Utility 1 | . . 1 Weapon 4 | . . 4 Highest Loss Streak 8 | . 1 8 Average Slot Usage (%) 84 | . 92 75 Engine 11 | . 14 7 Core 2 | . . 5 Leg 9 | . 2 18 Wheel 10 | . 19 . Device 2 | . . 5 Storage 12 | . 14 9 Protection 10 | . 12 8 Energy Gun 12 | . 14 9 Ballistic Gun 10 | . 14 7 Naked Turns . | . . . Heaviest Build 18 | 12 18 18 Greatest Support 26 | 26 26 20 Greatest Overweight (x) 3 | . 1 3 Average Overweight (x) . | . . . Largest Inventory Capacity 6 | 6 6 6 Average Capacity 5 | 5 6 5 Most Carried 6 | 4 6 6 Average Carried 5 | 1 5 4 Final Capacity 6 | 6 6 4 Final Carried 6 | 4 6 3 Class Distribution -------------------- 100% | Mutant Dominant Class ---------------- Mutant | -10/Materials Mutant | -10/Mines Resources | -11 -10 -10 ----------- Run | Scr Mat Min Matter Collected 417 | 168 166 83 Remotely . | . . . Salvage Created 224 | . 167 57 Parts 12 | . 9 3 Haulers Intercepted . | . . . Recyclers Shooed 2 | . 2 . Parts Field Recycled . | . . . Retrieved Matter . | . . . Parts Self-Destructed . | . . . Prevented . | . . . Kills | -11 -10 -10 ------- Run | Scr Mat Min Combat Hostiles Destroyed 8 | . 6 2 Guns 8 | . 6 2 Classes Destroyed 3 | . 2 1 Swarmer 3 | . 3 . Grunt 4 | . 3 1 Assembled 1 | . . 1 Best Kill Streak 2 | . 2 1 Combat Bots Only 2 | . 2 1 Max Kills in Single Turn 1 | . 1 1 Gunslinging . | . . . Exploded . | . . . Melee . | . . . Uniques/NPCs Destroyed . | . . . Combat | -11 -10 -10 -------- Run | Scr Mat Min Damage Taken 993 | . 330 663 Core 256 | . 100 156 Absorbed by Shields . | . . . Core Remaining (%) 100 | 100 . . Volleys Fired 51 | . 29 22 Largest 2 | . 2 2 Hottest 165 | . 70 165 Shots Fired 88 | . 53 35 Gun 83 | . 53 30 Cannon . | . . . Launcher . | . . . Special 5 | . . 5 Kinetic 40 | . 29 11 Thermal 48 | . 24 24 Explosive . | . . . Electromagnetic . | . . . Robot Hit Streak 18 | . 17 18 Robot Miss Streak 2 | . 2 2 Penetration Max . | . . . Secondary Targets 2 | . 1 1 Max Gunslinging Chain 1 | . 1 1 Shots Hit Robots 63 | . 41 22 Core Hits 23 | . 15 8 Critical Hits 1 | . . 1 Critical Kills . | . . . Critical Parts Destroyed 1 | . . 1 Melee Attacks . | . . . Impact . | . . . Slashing . | . . . Piercing . | . . . Sneak Attacks . | . . . Combat Hostiles . | . . . Follow-up Attacks . | . . . Damage Inflicted 675 | . 390 285 Guns 671 | . 390 281 Cannons . | . . . Explosions . | . . . Melee . | . . . Ramming 4 | . . 4 Kinetic 237 | . 175 62 Thermal 434 | . 215 219 Explosive . | . . . Electromagnetic . | . . . Impact . | . . . Slashing . | . . . Piercing . | . . . Highest Corruption . | . . . Average Corruption . | . . . Corruption Purged . | . . . Overload Shots . | . . . Overflow Damage . | . . . Projectiles . | . . . Explosions . | . . . Melee . | . . . Knockbacks . | . . . Impact . | . . . Kinetic . | . . . Secondary . | . . . Self-Inflicted Damage 1 | . . 1 Shots . | . . . Rammed 3 | . . 3 Targets Rammed 3 | . . 3 Kicked . | . . . Crushed . | . . . Highest Temperature 447 | . 368 447 Average Temperature 187 | . 151 230 Received Heat Transfer 406 | . 114 292 Effects 5 | . 4 1 Shutdowns 1 | . . 1 Energy Bleed 3 | . 3 . Matter Decay 1 | . 1 . Siege Activations . | . . . Robots Corrupted . | . . . Combat Hostiles . | . . . Parts Fried . | . . . Impact Corruptions . | . . . Robots Melted . | . . . Combat Hostiles . | . . . Parts Melted 1 | . 1 . Heat Transferred 1184 | . 629 555 Parts Sabotaged . | . . . Parts Stolen . | . . . Parts Stripped . | . . . Power Chain Reactions . | . . . Missiles Intercepted . | . . . Alert | -11 -10 -10 ------- Run | Scr Mat Min Peak Influence 136 | . 136 79 Average Influence 48 | . 65 33 Maximum Alert Level . | . . . Low Security (%) 100 | 100 100 100 Level 1 . | . . . Level 2 . | . . . Level 3 . | . . . Level 4 . | . . . Level 5 . | . . . High Security . | . . . Max Security . | . . . Squads Dispatched . | . . . Investigation . | . . . Extermination . | . . . Reinforcement . | . . . Assault . | . . . Garrison . | . . . Intercept . | . . . Construction Impeded . | . . . Haulers Reinforced . | . . . Stealth | -11 -10 -10 --------- Run | Scr Mat Min Distress Signals 2 | . 2 . Communications Jammed . | . . . Distress Signals . | . . . Times Spotted 21 | . 11 10 Peak Tracking Total 6 | . 6 5 Tactical Retreats 2 | . 2 . Traps | -11 -10 -10 ------- Run | Scr Mat Min Traps Triggered 2 | . 2 . Indirectly . | . . . Trap Hack Attempts . | . . . Triggered . | . . . Disarmed . | . . . Reprogrammed . | . . . Reused . | . . . Traps Extracted . | . . . Installed . | . . . Triggered . | . . . Machines | -11 -10 -10 ---------- Run | Scr Mat Min Machines Disabled . | . . . Max in Single Turn . | . . . Machines Sabotaged . | . . . Garrisons Compromised . | . . . Overloaded Fab Kills . | . . . Fab Network Shutdowns . | . . . Hacking | -11 -10 -10 --------- Run | Scr Mat Min Machines Accessed 1 | . 1 . Terminals 1 | . 1 . Fabricators . | . . . Repair Stations . | . . . Recycling Units . | . . . Scanalyzers . | . . . Garrison Access . | . . . Total Hacks 3 | . 3 . Successful 2 | . 2 . Failed 1 | . 1 . Catastrophic . | . . . Database Lockouts . | . . . Manual 3 | . 3 . Terminals 3 | . 3 . Fabricators . | . . . Repair Stations . | . . . Recycling Units . | . . . Scanalyzers . | . . . Garrison Access . | . . . Terminal Hacks 2 | . 2 . Branch Access Points 1 | . 1 . Locate Traps 1 | . 1 . Fabricator Hacks . | . . . Repair Station Hacks . | . . . Recycling Unit Hacks . | . . . Scanalyzer . | . . . Garrison Access Hacks . | . . . Unauthorized Hacks . | . . . Terminals . | . . . Fabricators . | . . . Repair Stations . | . . . Recycling Units . | . . . Scanalyzers . | . . . Garrison Access . | . . . Data Cores Recovered . | . . . Used . | . . . Hacking Detections 1 | . 1 . Full Trace Events . | . . . Feedback Events . | . . . Feedback Blocked . | . . . Robot Schematics Acquired . | . . . Robots Built . | . . . Matter . | . . . Time . | . . . Total Robot Build Rating . | . . . Part Schematics Acquired . | . . . Parts Built . | . . . Matter . | . . . Time . | . . . Total Part Build Rating . | . . . Parts Repaired . | . . . Time . | . . . Parts Recycled . | . . . Recycled Matter . | . . . Retrieved Matter . | . . . Retrieved Components . | . . . Parts Scanalyzed . | . . . Part Schematics Acquired . | . . . Parts Damaged . | . . . Bothacking | -11 -10 -10 ------------ Run | Scr Mat Min Used RIF Installer . | . . . Robots Hacked . | . . . Non-combat . | . . . Combat . | . . . Robot Hacks Applied . | . . . Relay Couplers Released . | . . . Robots Rewired . | . . . Allies Hacked . | . . . Hacks Repelled . | . . . Allies | -11 -10 -10 -------- Run | Scr Mat Min Total Allies . | . . . Largest Group . | . . . Highest-Rated Group . | . . . Highest-Rated Ally . | . . . Total Orders . | . . . Ally Attacks . | . . . Total Damage . | . . . Kills . | . . . Allies Corrupted . | . . . Allies Melted . | . . . Intel | -11 -10 -10 ------- Run | Scr Mat Min Robot Analysis Total . | . . . Derelict Logs Recovered . | . . . Drone Launches . | . . . Drone Recoveries . | . . . Exploration | -11 -10 -10 ------------- Run | Scr Mat Min Turns Passed 621 | 40 325 256 Spaces Moved 410 | 32 224 154 Core 77 | 2 . 75 Treads . | . . . Legs 97 | . 18 79 Wheels 236 | 30 206 . Hover . | . . . Flight . | . . . Fastest Speed 50 | 50 80 50 Average Speed 99 | 86 94 110 Slowest Speed 200 | 90 150 200 Overloaded Moves . | . . . Propulsion Burnouts . | . . . Robots Hopped . | . . . Cave-ins Triggered . | . . . Exploration Rate (%) 17 | 4 29 20 Regions Visited 2 Branch Regions 1 Pre-discovered Areas . | . . . Known Exits Taken 1 | . 1 . Unknown Exits Taken 1 | 1 . . Scrap Searched . | . . . Spaces Dug . | . . . Terrain Destroyed . | . . . Melee . | . . . Projectile . | . . . AOE . | . . . Actions | -11 -10 -10 --------- Run | Scr Mat Min Total 524 | 41 290 193 Wait 23 | . 16 7 Move 408 | 31 223 154 Hop . | . . . Pick Up 10 | 4 6 . Fast Attach 14 | 6 8 . Attach 5 | . 1 4 Detach 1 | . . 1 Swap 3 | . 1 2 Drop 6 | . 6 . Fire 51 | . 29 22 Melee . | . . . Ram 3 | . . 3 Kick . | . . . Crush . | . . . Escape Stasis . | . . . Rewire . | . . . Trap . | . . . Miscellaneous . | . . . Route ------- -11/Scrapyard -10/Materials -10/Mines (discovered 1 exit: [*Mat]) History --------- Turn | Location | Event 27 | -11/Scrapyard | Discovered new exit (range 14) 41 | -11/Scrapyard | Entered Materials 90 | -10/Materials | Identified exit to Mines 323 | -10/Materials | Build established: Mutant 366 | -10/Materials | Entered Mines 381 | -10/Mines | Discovered new exit (range 13) 449 | -10/Mines | Excavation squad dispatched 449 | -10/Mines | A large section of the Mines collapsed 507 | -10/Mines | Core integrity fell below 50% 544 | -10/Mines | Core integrity fell below 20% 574 | -10/Mines | Lost 8 parts (1p2n1u4w) 622 | -10/Mines | Destroyed by S-10 Pest with Light Assault Rifle Last Messages --------------- 00542_ Slammed into as-47335. 00543_ Med. Laser destroyed. 00543_ U-05 Engineer lays Concrete. 00543_ R-06 Scavenger collects Aluminum Leg. 00544_ U-05 Engineer lays Concrete. 00544_ as-05370 sneak attacks. 00544_ R-06 Scavenger destroyed. 00544_ Slammed into as-47335. 00546_ Slammed into as-05370. 00548_ as-47335 destroyed. 00549_ T-07 Excavator is excavating. 00549_ as-05370 sneak attacks. 00552_ U-05 Engineer lays Concrete. 00553_ T-07 Excavator is excavating. 00553_ U-05 Engineer lays Concrete. 00554_ T-07 Excavator destroyed. 00554_ U-05 Engineer destroyed. 00556_ T-07 Excavator destroyed. 00582_ K-01 Serf collects debris. 00621_ Lgt. Nuclear Core destroyed. Map ----- +----------------------------------------------------+ | ????????????????????????????????????????????????? | | ????????????????????????????????????????????????? | | ????????????????????????????????????????????????? | | ????????????????????????????????????????????????? | | ????????????????????????????????????????????????? | | ????????????????????????????????????????????????? | | ????????????????????????????????????????????????? | | ????????????????????????????????????????????????? | | ??????????????????????? ????????????????????????? | | ??????????????????????? #???????????????????????? | | ?????????????????????? #???????????????????????? | | ?????????????????????? s#???????????????????????? | | ?????????????????????? #???????????????????????? | | ??????????????????????s #???????????????????????? | | ?????????????????????? #???????????????????????? | | ?????????????????????##s#???????????????????????? | | ????????????????????## u##??????????????????????? | | ????????????????????# ##?????????????????????? | | ??###??????????????## #?????????????????????? | | ?## #???########### #?????????????????????? | | ?# #??# #?????????????????????? | | ?# ### #### ##?????????????????????? | | ?# ## #??# #??????????????????????? | | ?# < ##### #??????????????????????? | | ?# #?# ### #??????????????????????? | | ?# #?## ##?# @#??????????????????????? | | ?# ####??####??# #??????????????????????? | | ?# #???????????# ??????????????????????? | | ?# # #???????????#####?????????????????????? | | ?## ## #?????????????????????????????????????? | | ??####?# #?????????????????????????????????????? | | ???????# #?????????????????????????????????????? | | ???????# #?????????????????????????????????????? | | ???????# #??##############?????????????????????? | | ???????# #??# #?????????????????????? | | ???????# #??# #?????????????????????? | | ???????# #??# """ """ #?????????????????????? | | ??????## #??# """ """ #?????????????????????? | | ????### #??# """ """ #?????????????????????? | | ???## #??#=*= #?????????????????????? | | ??## ##??#=%%""" """ #?????????????????????? | | ??# #####===""" """ #?????????????????????? | | ?# *!%%=""" """ #?????????????????????? | | ?# %%%|%!%= #?????????????????????? | | ?## ########%!""" """ #?????????????????????? | | ??#####??????##% """ """ #?????????????????????? | | ?????????????# """ """ #?????????????????????? | | ?????????????# #?????????????????????? | | ?????????????##############?????????????????????? | | ????????????????????????????????????????????????? | +----------------------------------------------------+ Best States ------------- Heat Dissipation 35 Energy Generation 14 Energy Capacity 250 Matter Stores 300 Matter Capacity 300 Sight Range 16 Terrain Scan Density 10 Armor Coverage 150 Resistance: KI 20 Resistance: TH 20 Resistance: EX 20 Resistance: EM 20 Resistance: I 20 Resistance: S 20 Resistance: P 20 Evasion (%) 42 Item Schematics ----------------- None Robot Schematics ------------------ None Fabricated ------------ Nothing Alien Tech Used ----------------- None Achievements -------------- None Challenges ------------ None Game ------ Seed 645caabb Manual? 1 Play Time 00:11:26 Cumulative 18.9 hours Start 2019.11.27 @ 14:10:44 End 2019.11.27 @ 14:21:09 Sessions 1 Manual Loads 0 Difficulty Adventurer Special Mode None Game No. 9 Rogue 6 Adventurer 3 Explorer 0 Win Type - Total 0 Types 0/0/0/0/0/0/0 Lore% 30 Gallery% 27 Achievement% 25 Wizard Run 0 Options --------- ASCII 1 Keyboard 1 Movement Numpad Keybinds 0 Fullscreen 1 Font 18/Terminus Map View 76x50 Tactical HUD 1 Map Filters NONE Filters NONE Steam 1 RUN: 7102aea3-d79a-4731-8cf3-c3efed55ea2d